[Event "Titled Tuesday Blitz November 08 Early 2022"]
[White "Rodriguez Fontecha, Marcos"]
[Black "Tleptsok, Ruslan"]
[WhiteFideId "2256576"]
[BlackFideId "24104485"]
[WhiteElo "2263"]
[BlackElo "2130"]
[Result "0-1"]
[Round "10"]
[TimeControl "180+1"]
[Date "2022.11.09"]
[WhiteClock "0:00:03"]
[BlackClock "0:00:44"]

1. Nf3 {[%clk 0:03:00]}  f5 {[%clk 0:02:59]} 2. d4 {[%clk 0:03:00]}  d5 {[%clk 0:02:58]} 3. Ne5 {[%clk 0:03:00]}  Nf6 {[%clk 0:02:55]} 4. g3 {[%clk 0:02:59]}  e6 {[%clk 0:02:54]} 5. Bg2 {[%clk 0:02:59]}  c6 {[%clk 0:02:53]} 6. c4 {[%clk 0:03:00]}  Bd6 {[%clk 0:02:51]} 7. O-O {[%clk 0:02:59]}  Nbd7 {[%clk 0:02:49]} 8. f4 {[%clk 0:02:54]}  O-O {[%clk 0:02:49]} 9. Qc2 {[%clk 0:02:48]}  Qe8 {[%clk 0:02:46]} 10. cxd5 {[%clk 0:02:48]}  exd5 {[%clk 0:02:41]} 11. a3 {[%clk 0:02:46]}  Ne4 {[%clk 0:02:39]} 12. b4 {[%clk 0:02:45]}  Ndf6 {[%clk 0:02:36]} 13. Nd2 {[%clk 0:02:41]}  Qh5 {[%clk 0:02:34]} 14. Ndf3 {[%clk 0:02:33]}  Be6 {[%clk 0:02:27]} 15. Rb1 {[%clk 0:02:22]}  Ng4 {[%clk 0:02:22]} 16. Rb3 {[%clk 0:02:10]}  Kh8 {[%clk 0:02:19]} 17. h3 {[%clk 0:02:00]}  Ngf6 {[%clk 0:02:16]} 18. Nd2 {[%clk 0:01:49]}  Qxe2 {[%clk 0:02:13]} 19. Bf3 {[%clk 0:01:41]}  Qa6 {[%clk 0:02:09]} 20. Nd3 {[%clk 0:01:29]}  Nxg3 {[%clk 0:02:06]} 21. Re1 {[%clk 0:01:26]}  Nge4 {[%clk 0:02:06]} 22. Nc5 {[%clk 0:01:24]}  Bxc5 {[%clk 0:02:06]} 23. dxc5 {[%clk 0:01:22]}  Nxd2 {[%clk 0:01:41]} 24. Qxd2 {[%clk 0:01:20]}  Ne4 {[%clk 0:01:41]} 25. Qd4 {[%clk 0:01:18]}  b6 {[%clk 0:01:39]} 26. Bb2 {[%clk 0:01:17]}  Rf7 {[%clk 0:01:37]} 27. Bxe4 {[%clk 0:01:13]}  fxe4 {[%clk 0:01:36]} 28. Rg3 {[%clk 0:01:13]}  Qb7 {[%clk 0:01:33]} 29. Rf1 {[%clk 0:01:03]}  Bf5 {[%clk 0:01:30]} 30. Rf2 {[%clk 0:00:56]}  Rg8 {[%clk 0:01:25]} 31. h4 {[%clk 0:00:55]}  Qe7 {[%clk 0:01:20]} 32. Rg5 {[%clk 0:00:52]}  h6 {[%clk 0:01:18]} 33. Rh2 {[%clk 0:00:29]}  bxc5 {[%clk 0:01:13]} 34. bxc5 {[%clk 0:00:28]}  e3 {[%clk 0:01:10]} 35. Rh5 {[%clk 0:00:22]}  Kh7 {[%clk 0:01:07]} 36. Re2 {[%clk 0:00:19]}  Bg4 {[%clk 0:01:01]} 37. Rxe3 {[%clk 0:00:13]}  Qf6 {[%clk 0:00:56]} 38. Qd3+ {[%clk 0:00:10]}  Bf5 {[%clk 0:00:52]} 39. Bxf6 {[%clk 0:00:06]}  Bxd3 {[%clk 0:00:52]} 40. Bd4 {[%clk 0:00:03]}  Bf5 {[%clk 0:00:47]} 41. Re5 {[%clk 0:00:02]}  Bg4 {[%clk 0:00:45]} 42. f5 {[%clk 0:00:02]}  Bxh5 {[%clk 0:00:44]} 43. f6 {[%clk 0:00:03]} 0-1


[Site "https://www.chess.com"]

[Event "Titled Tuesday Blitz November 08 Early 2022"]
[White "Ronka, Erik"]
[Black "Hernandez Jimenez, Alexander Andres"]
[WhiteFideId "505080"]
[BlackFideId "3900452"]
[WhiteElo "2264"]
[BlackElo "2098"]
[Result "1-0"]
[Round "10"]
[TimeControl "180+1"]
[Date "2022.11.09"]
[WhiteClock "0:00:29"]
[BlackClock "0:00:01"]

1. d4 {[%clk 0:03:00]}  d5 {[%clk 0:02:56]} 2. c4 {[%clk 0:02:59]}  c6 {[%clk 0:02:56]} 3. Nc3 {[%clk 0:02:59]}  Nf6 {[%clk 0:02:56]} 4. e3 {[%clk 0:02:59]}  g6 {[%clk 0:02:56]} 5. Nf3 {[%clk 0:02:58]}  Bg7 {[%clk 0:02:56]} 6. Be2 {[%clk 0:02:59]}  O-O {[%clk 0:02:56]} 7. O-O {[%clk 0:02:59]}  a6 {[%clk 0:02:57]} 8. b3 {[%clk 0:02:58]}  b5 {[%clk 0:02:57]} 9. Bb2 {[%clk 0:02:55]}  Bg4 {[%clk 0:02:36]} 10. h3 {[%clk 0:02:54]}  Bxf3 {[%clk 0:02:36]} 11. Bxf3 {[%clk 0:02:55]}  e6 {[%clk 0:02:33]} 12. e4 {[%clk 0:02:53]}  b4 {[%clk 0:02:23]} 13. Na4 {[%clk 0:02:47]}  dxe4 {[%clk 0:02:20]} 14. Be2 {[%clk 0:02:48]}  Nbd7 {[%clk 0:02:17]} 15. Qd2 {[%clk 0:02:47]}  a5 {[%clk 0:02:17]} 16. a3 {[%clk 0:02:48]}  Qe7 {[%clk 0:02:15]} 17. Rfd1 {[%clk 0:02:47]}  h5 {[%clk 0:02:10]} 18. Qc1 {[%clk 0:02:33]}  e5 {[%clk 0:01:50]} 19. d5 {[%clk 0:02:27]}  cxd5 {[%clk 0:01:47]} 20. cxd5 {[%clk 0:02:28]}  Rfc8 {[%clk 0:01:45]} 21. Qe3 {[%clk 0:02:26]}  Qd6 {[%clk 0:01:42]} 22. Bc4 {[%clk 0:02:17]}  Kh7 {[%clk 0:01:41]} 23. axb4 {[%clk 0:02:15]}  axb4 {[%clk 0:01:39]} 24. Rac1 {[%clk 0:02:13]}  Bh6 {[%clk 0:01:38]} 25. Qe2 {[%clk 0:02:07]}  Bxc1 {[%clk 0:01:21]} 26. Bxc1 {[%clk 0:02:08]}  Nb6 {[%clk 0:01:00]} 27. Nxb6 {[%clk 0:02:01]}  Qxb6 {[%clk 0:00:59]} 28. Bg5 {[%clk 0:02:02]}  Kg7 {[%clk 0:00:48]} 29. Kh2 {[%clk 0:01:56]}  Qd6 {[%clk 0:00:46]} 30. Bd2 {[%clk 0:01:52]}  Ra2 {[%clk 0:00:44]} 31. Qe3 {[%clk 0:01:51]}  Kg8 {[%clk 0:00:39]} 32. Qg5 {[%clk 0:01:44]}  Nh7 {[%clk 0:00:32]} 33. Qe3 {[%clk 0:01:43]}  Nf8 {[%clk 0:00:30]} 34. Qe1 {[%clk 0:01:38]}  Nd7 {[%clk 0:00:27]} 35. Bxb4 {[%clk 0:01:37]}  Qf6 {[%clk 0:00:27]} 36. Bd2 {[%clk 0:01:35]}  Nc5 {[%clk 0:00:24]} 37. Be3 {[%clk 0:01:09]}  Qd6 {[%clk 0:00:23]} 38. b4 {[%clk 0:01:00]}  Nd3 {[%clk 0:00:22]} 39. Rxd3 {[%clk 0:00:59]}  exd3 {[%clk 0:00:17]} 40. Bxa2 {[%clk 0:00:59]}  Rc2 {[%clk 0:00:15]} 41. Bb1 {[%clk 0:00:52]}  Rb2 {[%clk 0:00:10]} 42. Bxd3 {[%clk 0:00:41]}  e4+ {[%clk 0:00:10]} 43. g3 {[%clk 0:00:35]}  exd3 {[%clk 0:00:10]} 44. Bd4 {[%clk 0:00:34]}  Re2 {[%clk 0:00:04]} 45. Qc3 {[%clk 0:00:32]}  Qd8 {[%clk 0:00:01]} 46. Qxd3 {[%clk 0:00:30]}  Qe8 {[%clk 0:00:01]} 47. d6 {[%clk 0:00:29]} 1-0


[Site "https://www.chess.com"]

[Event "Titled Tuesday Blitz November 08 Early 2022"]
[White "Roque Sola, Gisela"]
[Black "Korelskiy, Egor"]
[WhiteFideId "5120241"]
[BlackFideId "34329064"]
[WhiteElo "1961"]
[BlackElo "2043"]
[Result "1/2-1/2"]
[Round "10"]
[TimeControl "180+1"]
[Date "2022.11.09"]
[WhiteClock "0:00:20"]
[BlackClock "0:00:01"]

1. e4 {[%clk 0:03:00]}  c5 {[%clk 0:02:59]} 2. Nf3 {[%clk 0:03:00]}  e6 {[%clk 0:03:00]} 3. d4 {[%clk 0:03:00]}  cxd4 {[%clk 0:03:00]} 4. Nxd4 {[%clk 0:03:01]}  a6 {[%clk 0:03:00]} 5. Nc3 {[%clk 0:03:01]}  Qc7 {[%clk 0:03:00]} 6. a3 {[%clk 0:03:00]}  Nf6 {[%clk 0:02:58]} 7. Be3 {[%clk 0:02:55]}  b5 {[%clk 0:02:58]} 8. f4 {[%clk 0:02:54]}  b4 {[%clk 0:02:55]} 9. axb4 {[%clk 0:02:51]}  Bxb4 {[%clk 0:02:54]} 10. Nb5 {[%clk 0:02:35]}  Qc6 {[%clk 0:02:21]} 11. Qd4 {[%clk 0:02:10]}  axb5 {[%clk 0:01:13]} 12. Rxa8 {[%clk 0:02:08]}  Qxa8 {[%clk 0:01:12]} 13. Qxb4 {[%clk 0:02:04]}  Nc6 {[%clk 0:01:08]} 14. Qa3 {[%clk 0:01:50]}  Qxa3 {[%clk 0:00:41]} 15. bxa3 {[%clk 0:01:51]}  b4 {[%clk 0:00:38]} 16. axb4 {[%clk 0:01:51]}  Nxb4 {[%clk 0:00:38]} 17. Kd2 {[%clk 0:01:51]}  Bb7 {[%clk 0:00:36]} 18. Bd3 {[%clk 0:01:49]}  Nxd3 {[%clk 0:00:29]} 19. cxd3 {[%clk 0:01:50]}  O-O {[%clk 0:00:27]} 20. Rb1 {[%clk 0:01:50]}  Bc6 {[%clk 0:00:26]} 21. h3 {[%clk 0:01:47]}  h6 {[%clk 0:00:24]} 22. g4 {[%clk 0:01:34]}  Rd8 {[%clk 0:00:21]} 23. Ba7 {[%clk 0:01:14]}  d5 {[%clk 0:00:17]} 24. e5 {[%clk 0:01:10]}  Nd7 {[%clk 0:00:15]} 25. d4 {[%clk 0:01:06]}  Ra8 {[%clk 0:00:15]} 26. Bb6 {[%clk 0:00:50]}  Rb8 {[%clk 0:00:12]} 27. Bc7 {[%clk 0:00:47]}  Rc8 {[%clk 0:00:12]} 28. Bd6 {[%clk 0:00:46]}  f6 {[%clk 0:00:11]} 29. Ra1 {[%clk 0:00:43]}  fxe5 {[%clk 0:00:09]} 30. fxe5 {[%clk 0:00:43]}  Ra8 {[%clk 0:00:07]} 31. Rxa8+ {[%clk 0:00:42]}  Bxa8 {[%clk 0:00:07]} 32. Nb5 {[%clk 0:00:39]}  Kf7 {[%clk 0:00:06]} 33. Ke3 {[%clk 0:00:38]}  Nb6 {[%clk 0:00:05]} 34. Bc5 {[%clk 0:00:37]}  Nc4+ {[%clk 0:00:05]} 35. Kf4 {[%clk 0:00:36]}  Bc6 {[%clk 0:00:03]} 36. Nd6+ {[%clk 0:00:35]}  Nxd6 {[%clk 0:00:03]} 37. exd6 {[%clk 0:00:33]}  Kf6 {[%clk 0:00:04]} 38. Bb6 {[%clk 0:00:32]}  g5+ {[%clk 0:00:03]} 39. Ke3 {[%clk 0:00:31]}  e5 {[%clk 0:00:03]} 40. Bd8+ {[%clk 0:00:28]}  Ke6 {[%clk 0:00:02]} 41. dxe5 {[%clk 0:00:28]}  Kxe5 {[%clk 0:00:03]} 42. Be7 {[%clk 0:00:28]}  d4+ {[%clk 0:00:02]} 43. Kd2 {[%clk 0:00:27]}  Bb5 {[%clk 0:00:03]} 44. Bf8 {[%clk 0:00:26]}  Ke4 {[%clk 0:00:02]} 45. Bxh6 {[%clk 0:00:25]}  Kf4 {[%clk 0:00:01]} 46. Bg7 {[%clk 0:00:22]}  Kg3 {[%clk 0:00:01]} 47. Bf6 {[%clk 0:00:21]}  Kxh3 {[%clk 0:00:01]} 48. Bxg5 {[%clk 0:00:21]}  Kxg4 {[%clk 0:00:01]} 49. Bf6 {[%clk 0:00:22]}  d3 {[%clk 0:00:02]} 50. d7 {[%clk 0:00:20]}  Bxd7 {[%clk 0:00:01]} 51. Kxd3 {[%clk 0:00:20]} 1/2-1/2


[Site "https://www.chess.com"]

[Event "Titled Tuesday Blitz November 08 Early 2022"]
[White "Rustemov, Alexander"]
[Black "Degenbaev, Aziz"]
[WhiteFideId "4119002"]
[BlackFideId "13802640"]
[WhiteElo "2650"]
[BlackElo "2039"]
[Result "1/2-1/2"]
[Round "10"]
[TimeControl "180+1"]
[Date "2022.11.09"]
[WhiteClock "0:00:03"]
[BlackClock "0:00:06"]

1. d4 {[%clk 0:03:00]}  Nf6 {[%clk 0:02:53]} 2. c4 {[%clk 0:03:00]}  g6 {[%clk 0:02:54]} 3. Nf3 {[%clk 0:03:00]}  Bg7 {[%clk 0:02:54]} 4. Nc3 {[%clk 0:02:59]}  O-O {[%clk 0:02:54]} 5. Bg5 {[%clk 0:02:58]}  d6 {[%clk 0:02:53]} 6. e3 {[%clk 0:02:57]}  h6 {[%clk 0:02:49]} 7. Bh4 {[%clk 0:02:56]}  c5 {[%clk 0:02:50]} 8. Be2 {[%clk 0:02:54]}  Nc6 {[%clk 0:02:45]} 9. O-O {[%clk 0:02:53]}  Bg4 {[%clk 0:02:14]} 10. d5 {[%clk 0:02:44]}  Na5 {[%clk 0:02:06]} 11. Rc1 {[%clk 0:02:36]}  Bxf3 {[%clk 0:02:00]} 12. gxf3 {[%clk 0:02:35]}  a6 {[%clk 0:01:57]} 13. b3 {[%clk 0:02:30]}  b6 {[%clk 0:01:39]} 14. Qc2 {[%clk 0:02:29]}  Qd7 {[%clk 0:01:38]} 15. Kh1 {[%clk 0:02:27]}  Qh3 {[%clk 0:01:33]} 16. Bg3 {[%clk 0:02:26]}  Rab8 {[%clk 0:01:19]} 17. a4 {[%clk 0:02:21]}  Nb7 {[%clk 0:01:03]} 18. Rg1 {[%clk 0:02:18]}  Rfe8 {[%clk 0:00:51]} 19. Ne4 {[%clk 0:02:07]}  Nh5 {[%clk 0:00:34]} 20. f4 {[%clk 0:02:03]}  Na5 {[%clk 0:00:29]} 21. Qd1 {[%clk 0:01:59]}  Nxg3+ {[%clk 0:00:26]} 22. Rxg3 {[%clk 0:01:59]}  Qf5 {[%clk 0:00:26]} 23. Bd3 {[%clk 0:01:58]}  Qd7 {[%clk 0:00:22]} 24. Qc2 {[%clk 0:01:52]}  e6 {[%clk 0:00:20]} 25. dxe6 {[%clk 0:01:46]}  Qxe6 {[%clk 0:00:19]} 26. f5 {[%clk 0:01:41]}  gxf5 {[%clk 0:00:14]} 27. Rcg1 {[%clk 0:01:26]}  fxe4 {[%clk 0:00:12]} 28. Rxg7+ {[%clk 0:01:11]}  Kf8 {[%clk 0:00:12]} 29. Be2 {[%clk 0:01:09]}  Qf6 {[%clk 0:00:08]} 30. Bh5 {[%clk 0:01:04]}  Qxg7 {[%clk 0:00:07]} 31. Rxg7 {[%clk 0:01:03]}  Kxg7 {[%clk 0:00:08]} 32. Qc3+ {[%clk 0:01:00]}  Re5 {[%clk 0:00:08]} 33. Bd1 {[%clk 0:00:52]}  Nc6 {[%clk 0:00:07]} 34. Qd2 {[%clk 0:00:50]}  Rd8 {[%clk 0:00:07]} 35. Kg2 {[%clk 0:00:48]}  d5 {[%clk 0:00:07]} 36. cxd5 {[%clk 0:00:36]}  Rdxd5 {[%clk 0:00:08]} 37. Qc1 {[%clk 0:00:34]}  Nb4 {[%clk 0:00:07]} 38. Be2 {[%clk 0:00:32]}  Kf8 {[%clk 0:00:06]} 39. h4 {[%clk 0:00:30]}  Re6 {[%clk 0:00:06]} 40. Qc3 {[%clk 0:00:26]}  Rg6+ {[%clk 0:00:06]} 41. Kh2 {[%clk 0:00:26]}  Nd3 {[%clk 0:00:06]} 42. f4 {[%clk 0:00:24]}  Nf2 {[%clk 0:00:02]} 43. b4 {[%clk 0:00:17]}  Ng4+ {[%clk 0:00:02]} 44. Kh3 {[%clk 0:00:16]}  Nf2+ {[%clk 0:00:01]} 45. Kh2 {[%clk 0:00:16]}  Ng4+ {[%clk 0:00:02]} 46. Bxg4 {[%clk 0:00:17]}  Rxg4 {[%clk 0:00:03]} 47. Kh3 {[%clk 0:00:11]}  Rg1 {[%clk 0:00:03]} 48. bxc5 {[%clk 0:00:12]}  Rxc5 {[%clk 0:00:03]} 49. Qd4 {[%clk 0:00:09]}  Rcc1 {[%clk 0:00:03]} 50. Qxe4 {[%clk 0:00:08]}  h5 {[%clk 0:00:03]} 51. f5 {[%clk 0:00:05]}  Rh1+ {[%clk 0:00:03]} 52. Kg2 {[%clk 0:00:05]}  Rcf1 {[%clk 0:00:02]} 53. Qe5 {[%clk 0:00:03]}  Rhg1+ {[%clk 0:00:03]} 54. Kh2 {[%clk 0:00:03]}  Rh1+ {[%clk 0:00:03]} 55. Kg2 {[%clk 0:00:02]}  Rhg1+ {[%clk 0:00:04]} 56. Kh3 {[%clk 0:00:02]}  Rh1+ {[%clk 0:00:05]} 57. Kg3 {[%clk 0:00:02]}  Rhg1+ {[%clk 0:00:06]} 58. Kh2 {[%clk 0:00:02]}  Rh1+ {[%clk 0:00:06]} 59. Kg2 {[%clk 0:00:03]} 1/2-1/2


[Site "https://www.chess.com"]

[Event "Titled Tuesday Blitz November 08 Early 2022"]
[White "Santos Flores, Alberto"]
[Black "Noboa Silva, Kevin"]
[WhiteFideId "3601234"]
[BlackFideId "3618471"]
[WhiteElo "2235"]
[BlackElo "2178"]
[Result "0-1"]
[Round "10"]
[TimeControl "180+1"]
[Date "2022.11.09"]
[WhiteClock "0:00:05"]
[BlackClock "0:00:06"]

1. d4 {[%clk 0:03:00]}  e6 {[%clk 0:02:59]} 2. Nf3 {[%clk 0:02:59]}  Nf6 {[%clk 0:02:58]} 3. Bf4 {[%clk 0:02:57]}  b6 {[%clk 0:02:58]} 4. e3 {[%clk 0:02:55]}  Be7 {[%clk 0:02:58]} 5. h3 {[%clk 0:02:55]}  d6 {[%clk 0:02:57]} 6. Nbd2 {[%clk 0:02:51]}  O-O {[%clk 0:02:57]} 7. c3 {[%clk 0:02:46]}  c5 {[%clk 0:02:57]} 8. Be2 {[%clk 0:02:44]}  Ba6 {[%clk 0:02:57]} 9. O-O {[%clk 0:02:41]}  Bxe2 {[%clk 0:02:56]} 10. Qxe2 {[%clk 0:02:42]}  cxd4 {[%clk 0:02:56]} 11. exd4 {[%clk 0:02:39]}  Nbd7 {[%clk 0:02:54]} 12. Rfe1 {[%clk 0:02:38]}  Qc7 {[%clk 0:02:54]} 13. Nf1 {[%clk 0:02:34]}  Rac8 {[%clk 0:02:53]} 14. Ng3 {[%clk 0:02:31]}  Rfe8 {[%clk 0:02:52]} 15. Nh2 {[%clk 0:02:24]}  Bf8 {[%clk 0:02:35]} 16. Ng4 {[%clk 0:02:15]}  Qc6 {[%clk 0:02:30]} 17. Bg5 {[%clk 0:02:09]}  Nd5 {[%clk 0:02:21]} 18. Nh5 {[%clk 0:01:57]}  f5 {[%clk 0:02:13]} 19. Ne3 {[%clk 0:01:44]}  Nxe3 {[%clk 0:02:11]} 20. Bxe3 {[%clk 0:01:42]}  g6 {[%clk 0:02:00]} 21. Ng3 {[%clk 0:01:33]}  Bg7 {[%clk 0:01:54]} 22. Qd2 {[%clk 0:01:25]}  Nf6 {[%clk 0:01:51]} 23. Bh6 {[%clk 0:01:23]}  Bh8 {[%clk 0:01:50]} 24. Re2 {[%clk 0:01:21]}  e5 {[%clk 0:01:42]} 25. dxe5 {[%clk 0:01:05]}  dxe5 {[%clk 0:01:42]} 26. Rd1 {[%clk 0:01:00]}  Qe6 {[%clk 0:01:34]} 27. Qd6 {[%clk 0:00:49]}  Kf7 {[%clk 0:01:22]} 28. Bg5 {[%clk 0:00:41]}  Bg7 {[%clk 0:01:15]} 29. Qxe6+ {[%clk 0:00:35]}  Rxe6 {[%clk 0:01:14]} 30. Red2 {[%clk 0:00:29]}  Rc7 {[%clk 0:01:03]} 31. Bxf6 {[%clk 0:00:28]}  Bxf6 {[%clk 0:01:03]} 32. Rd7+ {[%clk 0:00:29]}  Re7 {[%clk 0:01:03]} 33. Rxc7 {[%clk 0:00:27]}  Rxc7 {[%clk 0:01:03]} 34. Nf1 {[%clk 0:00:27]}  Ke6 {[%clk 0:01:00]} 35. Ne3 {[%clk 0:00:27]}  Rc5 {[%clk 0:00:55]} 36. Kf1 {[%clk 0:00:27]}  Bg5 {[%clk 0:00:53]} 37. Ke2 {[%clk 0:00:26]}  f4 {[%clk 0:00:47]} 38. Nc2 {[%clk 0:00:24]}  e4 {[%clk 0:00:44]} 39. Rd4 {[%clk 0:00:19]}  Re5 {[%clk 0:00:43]} 40. Ra4 {[%clk 0:00:15]}  a5 {[%clk 0:00:43]} 41. b4 {[%clk 0:00:15]}  Be7 {[%clk 0:00:37]} 42. bxa5 {[%clk 0:00:15]}  bxa5 {[%clk 0:00:35]} 43. Rc4 {[%clk 0:00:14]}  Bc5 {[%clk 0:00:32]} 44. Ra4 {[%clk 0:00:12]}  Bb6 {[%clk 0:00:28]} 45. Nd4+ {[%clk 0:00:12]}  Kd5 {[%clk 0:00:23]} 46. Nb3 {[%clk 0:00:12]}  Kc6 {[%clk 0:00:20]} 47. Nd4+ {[%clk 0:00:12]}  Kc5 {[%clk 0:00:16]} 48. Ra3 {[%clk 0:00:11]}  Kc4 {[%clk 0:00:13]} 49. Rb3 {[%clk 0:00:11]}  Bxd4 {[%clk 0:00:12]} 50. cxd4 {[%clk 0:00:12]}  Kxd4 {[%clk 0:00:13]} 51. Rb7 {[%clk 0:00:12]}  h5 {[%clk 0:00:12]} 52. h4 {[%clk 0:00:08]}  g5 {[%clk 0:00:11]} 53. Rd7+ {[%clk 0:00:08]}  Kc4 {[%clk 0:00:10]} 54. hxg5 {[%clk 0:00:07]}  Rxg5 {[%clk 0:00:10]} 55. Re7 {[%clk 0:00:08]}  Kd4 {[%clk 0:00:10]} 56. Rd7+ {[%clk 0:00:07]}  Rd5 {[%clk 0:00:11]} 57. Rf7 {[%clk 0:00:06]}  Ke5 {[%clk 0:00:09]} 58. Re7+ {[%clk 0:00:06]}  Kf5 {[%clk 0:00:09]} 59. Rf7+ {[%clk 0:00:06]}  Kg5 {[%clk 0:00:09]} 60. Rg7+ {[%clk 0:00:06]}  Kf6 {[%clk 0:00:09]} 61. Rh7 {[%clk 0:00:06]}  Rb5 {[%clk 0:00:08]} 62. g3 {[%clk 0:00:06]}  Rb2+ {[%clk 0:00:08]} 63. Ke1 {[%clk 0:00:05]}  e3 {[%clk 0:00:07]} 64. fxe3 {[%clk 0:00:05]}  fxg3 {[%clk 0:00:06]} 0-1


[Site "https://www.chess.com"]

[Event "Titled Tuesday Blitz November 08 Early 2022"]
[White "Savic, Miomir"]
[Black "Gabdrakhmanov, Azat"]
[WhiteFideId "934550"]
[BlackFideId "34189197"]
[WhiteElo "2122"]
[BlackElo "2254"]
[Result "1-0"]
[Round "10"]
[TimeControl "180+1"]
[Date "2022.11.09"]
[WhiteClock "0:01:20"]
[BlackClock "0:00:29"]

1. d4 {[%clk 0:03:00]}  Nf6 {[%clk 0:03:00]} 2. Bg5 {[%clk 0:02:59]}  Ne4 {[%clk 0:03:00]} 3. Bf4 {[%clk 0:02:58]}  c5 {[%clk 0:03:00]} 4. f3 {[%clk 0:02:58]}  Nf6 {[%clk 0:03:00]} 5. d5 {[%clk 0:02:57]}  d6 {[%clk 0:03:01]} 6. Nc3 {[%clk 0:02:50]}  g6 {[%clk 0:03:02]} 7. e4 {[%clk 0:02:48]}  Bg7 {[%clk 0:03:02]} 8. Nge2 {[%clk 0:02:41]}  Nbd7 {[%clk 0:03:02]} 9. a4 {[%clk 0:02:39]}  a6 {[%clk 0:03:03]} 10. Ng3 {[%clk 0:02:34]}  Rb8 {[%clk 0:02:59]} 11. Be2 {[%clk 0:02:31]}  O-O {[%clk 0:02:53]} 12. Qd2 {[%clk 0:02:28]}  Ne5 {[%clk 0:02:51]} 13. O-O {[%clk 0:02:23]}  Bd7 {[%clk 0:02:43]} 14. h3 {[%clk 0:02:18]}  b5 {[%clk 0:02:39]} 15. axb5 {[%clk 0:02:17]}  axb5 {[%clk 0:02:40]} 16. b3 {[%clk 0:02:17]}  b4 {[%clk 0:02:35]} 17. Nd1 {[%clk 0:02:13]}  e6 {[%clk 0:02:31]} 18. Bg5 {[%clk 0:02:10]}  exd5 {[%clk 0:02:29]} 19. exd5 {[%clk 0:02:09]}  Bc8 {[%clk 0:02:17]} 20. Nf2 {[%clk 0:02:06]}  Qc7 {[%clk 0:02:09]} 21. f4 {[%clk 0:02:02]}  Ned7 {[%clk 0:02:08]} 22. f5 {[%clk 0:02:01]}  Ne8 {[%clk 0:01:53]} 23. Be7 {[%clk 0:01:57]}  Bxa1 {[%clk 0:01:48]} 24. Rxa1 {[%clk 0:01:58]}  f6 {[%clk 0:01:22]} 25. fxg6 {[%clk 0:01:53]}  hxg6 {[%clk 0:01:23]} 26. Qh6 {[%clk 0:01:50]}  Rf7 {[%clk 0:01:10]} 27. Qxg6+ {[%clk 0:01:50]}  Ng7 {[%clk 0:01:10]} 28. Nf5 {[%clk 0:01:46]}  Rxe7 {[%clk 0:00:40]} 29. Nxe7+ {[%clk 0:01:45]}  Kf8 {[%clk 0:00:40]} 30. Qh6 {[%clk 0:01:23]}  Qd8 {[%clk 0:00:29]} 31. Nf5 {[%clk 0:01:20]} 1-0


[Site "https://www.chess.com"]

[Event "Titled Tuesday Blitz November 08 Early 2022"]
[White "Storey, Charles H"]
[Black "Horobetz, Graham"]
[WhiteFideId "406686"]
[BlackFideId "2047322"]
[WhiteElo "2252"]
[BlackElo "2600"]
[Result "1-0"]
[Round "10"]
[TimeControl "180+1"]
[Date "2022.11.09"]
[WhiteClock "0:00:08"]
[BlackClock "0:00:09"]

1. c4 {[%clk 0:03:00]}  c5 {[%clk 0:02:59]} 2. g3 {[%clk 0:02:58]}  g6 {[%clk 0:02:59]} 3. Bg2 {[%clk 0:02:58]}  Bg7 {[%clk 0:02:59]} 4. Nc3 {[%clk 0:02:58]}  Nc6 {[%clk 0:02:52]} 5. Nf3 {[%clk 0:02:58]}  e5 {[%clk 0:02:51]} 6. d3 {[%clk 0:02:57]}  Nge7 {[%clk 0:02:51]} 7. h4 {[%clk 0:02:56]}  h6 {[%clk 0:02:50]} 8. Bd2 {[%clk 0:02:55]}  d6 {[%clk 0:02:49]} 9. a3 {[%clk 0:02:54]}  a5 {[%clk 0:02:48]} 10. Qc1 {[%clk 0:02:43]}  Be6 {[%clk 0:02:47]} 11. e4 {[%clk 0:02:39]}  f6 {[%clk 0:02:29]} 12. Nd5 {[%clk 0:02:31]}  h5 {[%clk 0:02:23]} 13. b4 {[%clk 0:02:22]}  axb4 {[%clk 0:01:50]} 14. axb4 {[%clk 0:02:22]}  Rxa1 {[%clk 0:01:50]} 15. Qxa1 {[%clk 0:02:22]}  cxb4 {[%clk 0:01:48]} 16. Nxb4 {[%clk 0:02:13]}  O-O {[%clk 0:01:44]} 17. O-O {[%clk 0:02:11]}  Nxb4 {[%clk 0:01:31]} 18. Bxb4 {[%clk 0:02:10]}  Nc6 {[%clk 0:01:32]} 19. Ba3 {[%clk 0:02:02]}  Rf7 {[%clk 0:01:32]} 20. Rb1 {[%clk 0:01:59]}  Bf8 {[%clk 0:01:24]} 21. Bc1 {[%clk 0:01:51]}  Be7 {[%clk 0:01:12]} 22. Be3 {[%clk 0:01:49]}  Qd7 {[%clk 0:01:05]} 23. Qa8+ {[%clk 0:01:46]}  Bd8 {[%clk 0:01:04]} 24. Kh2 {[%clk 0:01:19]}  Kg7 {[%clk 0:01:02]} 25. Ng1 {[%clk 0:01:18]}  f5 {[%clk 0:01:00]} 26. exf5 {[%clk 0:01:03]}  gxf5 {[%clk 0:00:59]} 27. Bb6 {[%clk 0:00:47]}  Bxb6 {[%clk 0:00:44]} 28. Rxb6 {[%clk 0:00:47]}  f4 {[%clk 0:00:31]} 29. Nf3 {[%clk 0:00:41]}  fxg3+ {[%clk 0:00:27]} 30. fxg3 {[%clk 0:00:41]}  Bg4 {[%clk 0:00:20]} 31. Ng5 {[%clk 0:00:39]}  Re7 {[%clk 0:00:17]} 32. Bd5 {[%clk 0:00:16]}  Nd8 {[%clk 0:00:10]} 33. Rb2 {[%clk 0:00:14]}  Ne6 {[%clk 0:00:08]} 34. Bxe6 {[%clk 0:00:12]}  Bxe6 {[%clk 0:00:07]} 35. Rf2 {[%clk 0:00:13]}  Bf7 {[%clk 0:00:06]} 36. Qa1 {[%clk 0:00:09]}  Qg4 {[%clk 0:00:06]} 37. Qe1 {[%clk 0:00:08]}  Bg6 {[%clk 0:00:06]} 38. Qf1 {[%clk 0:00:08]}  e4 {[%clk 0:00:06]} 39. dxe4 {[%clk 0:00:07]}  Bxe4 {[%clk 0:00:04]} 40. Rf7+ {[%clk 0:00:07]}  Rxf7 {[%clk 0:00:03]} 41. Qxf7+ {[%clk 0:00:08]}  Kh6 {[%clk 0:00:03]} 42. Qf8+ {[%clk 0:00:06]}  Kg6 {[%clk 0:00:03]} 43. Qe8+ {[%clk 0:00:06]}  Kh6 {[%clk 0:00:03]} 44. Qxe4 {[%clk 0:00:06]}  Qd1 {[%clk 0:00:03]} 45. Qf3 {[%clk 0:00:04]}  Qxf3 {[%clk 0:00:02]} 46. Nxf3 {[%clk 0:00:03]}  Kg6 {[%clk 0:00:03]} 47. Nd4 {[%clk 0:00:04]}  Kf6 {[%clk 0:00:03]} 48. Nb5 {[%clk 0:00:05]}  Ke5 {[%clk 0:00:04]} 49. g4 {[%clk 0:00:05]}  hxg4 {[%clk 0:00:03]} 50. Kg3 {[%clk 0:00:05]}  d5 {[%clk 0:00:04]} 51. cxd5 {[%clk 0:00:05]}  Kxd5 {[%clk 0:00:05]} 52. h5 {[%clk 0:00:05]}  Kc5 {[%clk 0:00:05]} 53. h6 {[%clk 0:00:05]}  Kxb5 {[%clk 0:00:06]} 54. h7 {[%clk 0:00:06]}  Kc4 {[%clk 0:00:07]} 55. h8=Q {[%clk 0:00:06]}  b5 {[%clk 0:00:08]} 56. Kxg4 {[%clk 0:00:06]}  Kb3 {[%clk 0:00:08]} 57. Kf3 {[%clk 0:00:07]}  b4 {[%clk 0:00:08]} 58. Ke2 {[%clk 0:00:08]}  Ka2 {[%clk 0:00:08]} 59. Kd1 {[%clk 0:00:08]}  b3 {[%clk 0:00:09]} 60. Kc1 {[%clk 0:00:08]}  Ka3 {[%clk 0:00:09]} 61. Qb2+ {[%clk 0:00:08]} 1-0


[Site "https://www.chess.com"]